bitfinex/quotes_SOLUSD_20250915
["timestamp","ask_amount","ask_price","bid_price","bid_amount"]
[1757959206783,0.03,233.71,233.7,9.17903352]
[1757959207087,0.03,233.71,233.7,4.27899015]
[1757959207793,0.03,233.71,233.7,4.97899015]
[1757959208193,0.03,233.71,233.7,4.27899015]
[1757959208771,0.03,233.71,233.69,4.27917326]
[1757959210292,0.03,233.71,233.7,4.20004337]
[1757959210692,0.03,233.71,233.7,8.47903352]
[1757959210879,0.75,233.71,233.65,10.69956901]
[1757959211078,0.75,233.71,233.66,4.27954974]
[1757959211406,0.72,233.7,233.66,4.27954974]
[1757959211570,0.72,233.69,233.64,4.27999025]
[1757959211894,0.72,233.68,233.64,4.27999025]
[1757959212098,0.72,233.68,233.62,4.28028376]
[1757959212275,4.20004337,233.64,233.5,0.42826552]
[1757959212472,4.20004337,233.64,233.4,4.20004337]
[1757959212473,4.20004337,233.55,233.46,0.7]
[1757959212671,0.14216157,233.65,233.43,3.45083456]
[1757959212672,4.20004337,233.54,233.47,4.98320555]
[1757959212907,4.20004337,233.52,233.48,14.99034496]
[1757959213100,4.20004337,233.52,233.48,4.2830221]
[1757959213406,4.92004337,233.52,233.48,4.2830221]
[1757959213709,4.20004337,233.54,233.49,0.7]
[1757959214770,4.20004337,233.54,233.5,4.28265524]
[1757959215592,4.20004337,233.56,233.5,15.68929335]
[1757959216678,4.20004337,233.6,233.53,14.98736778]
[1757959216876,0.72,233.59,233.53,14.98736778]
[1757959218777,4.20004337,233.6,233.53,10.7052627]
[1757959219295,4.20004337,233.6,233.53,11.4052627]
[1757959219979,4.20004337,233.6,233.53,0.7]
[1757959220182,35.74,233.63,233.52,4.28228845]
[1757959220183,4.20004337,233.56,233.52,4.28228845]
[1757959220385,4.20004337,233.54,233.5,4.28248121]
[1757959220723,4.20004337,233.53,233.5,4.28248121]
[1757959221092,4.20004337,233.53,233.49,10.70663911]
[1757959221703,4.20004337,233.55,233.49,11.40663911]
[1757959223191,0.72,233.57,233.49,15.68947777]
[1757959223393,4.20004337,233.56,233.49,15.68947777]
[1757959223799,4.20004337,233.56,233.49,14.98947777]
[1757959224010,4.20004337,233.58,233.5,4.90004337]
[1757959224505,4.92004337,233.58,233.5,4.90004337]
[1757959225803,40.58004337,233.58,233.51,14.98865144]
[1757959226419,4.92004337,233.58,233.51,14.98865144]
[1757959226615,0.72,233.57,233.51,4.28247184]
[1757959226810,4.92004337,233.56,233.51,4.28247184]
[1757959227014,4.20004337,233.54,233.48,4.2830221]
[1757959227196,4.20004337,233.5,233.47,0.06]
[1757959227519,4.20004337,233.48,233.47,0.06]
[1757959227687,4.92004337,233.48,233.47,0.06]
[1757959227891,2.47156637,233.48,233.47,0.06]
[1757959229416,6.75458847,233.48,233.47,0.06]
[1757959229796,4.93146999,233.48,233.47,0.06]
[1757959230513,9.21449209,233.48,233.47,0.06]
[1757959230816,40.49146999,233.48,233.47,0.06]
[1757959231633,44.77449209,233.48,233.47,0.06]
[1757959231796,4.21146999,233.45,233.44,0.06]
[1757959232426,4.92146999,233.45,233.44,0.06]
[1757959233426,31.06363156,233.45,233.44,0.06]
[1757959233592,26.0,233.42,233.35,0.2]
[1757959233797,6.54201774,233.36,233.35,0.2]
[1757959234314,0.71,233.42,233.35,0.2]
[1757959234519,0.71,233.42,233.35,5.15540395]
[1757959234816,0.71,233.45,233.36,0.67]
[1757959235343,6.54201774,233.43,233.36,0.67]
[1757959235543,6.54201774,233.43,233.36,7.21201774]
[1757959235836,6.54201774,233.43,233.42,0.06]
[1757959236612,36.70671894,233.5,233.42,0.06]
[1757959236613,26.0,233.5,233.42,0.06]
[1757959236837,4.9927011,233.5,233.42,0.73]
[1757959237039,6.54201774,233.48,233.42,0.06]
[1757959237634,35.52,233.47,233.42,0.06]
[1757959237834,42.06201774,233.47,233.42,0.06]
[1757959238034,6.54201774,233.43,233.42,0.06]
[1757959238527,7.25201774,233.43,233.42,0.06]
[1757959239653,33.39417931,233.43,233.42,0.06]
[1757959240021,37.67811882,233.43,233.42,0.06]
[1757959242015,73.21811882,233.43,233.42,0.06]
[1757959243218,60.81371283,233.43,233.42,0.06]
[1757959243423,60.81371283,233.43,233.42,1e-08]
[1757959246347,73.69371283,233.43,233.42,1e-08]
[1757959246645,60.81371283,233.43,233.42,1e-08]
[1757959247750,25.27371283,233.43,233.42,1e-08]
[1757959248044,60.71371283,233.43,233.42,1e-08]
[1757959248721,25.27371283,233.43,233.42,1e-08]
[1757959248936,60.67371283,233.43,233.42,1e-08]
[1757959249922,73.55371283,233.43,233.42,1e-08]
[1757959252231,38.15371283,233.43,233.42,1e-08]
[1757959252428,76.35057929,233.43,233.42,1e-08]
[1757959252624,82.35497677,233.43,233.42,1e-08]
[1757959252823,47.03497677,233.43,233.42,1e-08]
[1757959253029,82.35497677,233.43,233.42,1e-08]
[1757959253742,20.0,233.41,233.39,1e-08]
[1757959253965,55.57977332,233.4,233.39,1e-08]
[1757959254150,56.24977332,233.4,233.39,1e-08]
[1757959254748,60.53426346,233.4,233.39,1e-08]
[1757959255550,39.59559401,233.37,233.35,0.2]
[1757959255746,48.89559401,233.36,233.35,0.2]
[1757959256127,49.56559401,233.36,233.35,0.2]
[1757959256332,48.89559401,233.36,233.35,0.2]
[1757959256546,55.43761175,233.36,233.35,0.2]
[1757959256752,59.72283629,233.36,233.35,0.2]
[1757959257565,59.68283629,233.36,233.35,0.2]
[1757959259036,134.3,233.37,233.35,0.9]
[1757959259254,41.76201774,233.36,233.35,0.9]
[1757959259458,41.76201774,233.36,233.35,0.2]
[1757959260270,13.73775558,233.35,233.34,0.2]
[1757959260440,13.73775558,233.35,233.34,1e-08]
[1757959260761,14.40775558,233.35,233.34,1e-08]
[1757959261059,10.96958749,233.35,233.34,1e-08]
[1757959261255,46.20958749,233.35,233.34,1e-08]
[1757959261455,10.96958749,233.35,233.34,1e-08]
[1757959261644,46.20958749,233.35,233.34,1e-08]
[1757959261837,46.86958749,233.35,233.34,1e-08]
[1757959262041,46.20958749,233.35,233.34,1e-08]
[1757959263665,59.8051815,233.35,233.34,1e-08]
[1757959263846,60.4651815,233.35,233.34,1e-08]
[1757959265053,4.42756975,233.35,233.34,1e-08]
[1757959265367,10.82742592,233.35,233.34,1e-08]
[1757959265567,46.00742592,233.35,233.34,1e-08]
[1757959266367,0.66,233.49,233.34,0.71000001]
[1757959266569,6.54201774,233.42,233.34,0.71000001]
[1757959266777,35.36,233.42,233.35,6.54201774]
[1757959267240,4.28430658,233.41,233.35,10.82740161]
[1757959267444,35.36,233.4,233.35,10.82740161]
[1757959268448,35.36,233.4,233.34,1e-08]
[1757959268758,41.90201774,233.4,233.34,1e-08]
[1757959269568,4.28467372,233.39,233.34,1e-08]
[1757959269771,35.3,233.38,233.34,1e-08]
[1757959270066,41.84201774,233.38,233.34,1e-08]
[1757959271068,6.54201774,233.36,233.34,1e-08]
[1757959271371,35.28,233.35,233.34,1e-08]
[1757959271566,39.56540818,233.35,233.34,1e-08]
[1757959271973,4.28540818,233.35,233.34,1e-08]
[1757959272269,39.56540818,233.35,233.34,1e-08]
[1757959274877,42.47351699,233.35,233.34,1e-08]
[1757959275448,42.47467903,233.35,233.34,1e-08]
[1757959275870,35.18,233.35,233.34,1e-08]
[1757959276083,134.33,233.4,233.34,1e-08]
[1757959276375,2.91123668,233.39,233.34,1e-08]
[1757959276674,4.31449507,233.4,233.34,1e-08]
[1757959276876,0.03,233.4,233.35,6.54201774]
[1757959277057,0.03,233.4,233.34,1e-08]
[1757959277058,35.18,233.39,233.37,6.54201774]
[1757959277752,0.03,233.4,233.37,10.82689386]
[1757959277947,0.03,233.4,233.39,6.54201774]
[1757959279059,0.03,233.4,233.39,20.13761175]
[1757959279368,0.03,233.4,233.39,24.42228547]
[1757959279550,0.03,233.4,233.39,4.28467372]
[1757959279746,0.03,233.4,233.39,10.82669146]
[1757959280474,0.03,233.4,233.34,39.59559402]
[1757959280475,0.03,233.4,233.35,6.54201774]
[1757959281459,0.03,233.4,233.37,6.54201774]
[1757959281680,0.03,233.4,233.34,1e-08]
[1757959281681,32.54201774,233.38,233.34,1e-08]
[1757959281851,6.54201774,233.36,233.34,1e-08]
[1757959282051,2.90948344,233.35,233.34,1e-08]
[1757959282274,3.56948344,233.35,233.34,1e-08]
[1757959282577,0.66,233.35,233.34,1e-08]
[1757959282752,35.88,233.35,233.34,1e-08]
[1757959282948,4.28540818,233.35,233.34,1e-08]
[1757959283168,39.48540818,233.35,233.34,1e-08]
[1757959283652,40.14540818,233.35,233.34,1e-08]
[1757959284562,43.05731823,233.35,233.34,1e-08]
[1757959285088,56.79507381,233.35,233.34,1e-08]
[1757959285254,49.74149754,233.35,233.34,1e-08]
[1757959285451,49.59933597,233.35,233.34,1e-08]
[1757959286157,49.74149754,233.35,233.34,1e-08]
[1757959287364,42.39731823,233.35,233.34,1e-08]
[1757959287577,48.93933597,233.35,233.34,1e-08]
[1757959287783,49.59933597,233.35,233.34,1e-08]
[1757959288168,42.39731823,233.35,233.34,1e-08]
[1757959288761,43.05731823,233.35,233.34,1e-08]
[1757959291512,35.2,233.35,233.34,1e-08]
[1757959292278,0.03,233.4,233.34,1e-08]
[1757959292478,0.03,233.4,233.35,6.54201774]
[1757959292686,35.14,233.39,233.35,6.54201774]
[1757959293090,35.14,233.39,233.37,6.54201774]
[1757959293262,0.03,233.4,233.37,6.54201774]
[1757959293464,0.03,233.4,233.39,6.54201774]
[1757959295581,0.03,233.4,233.39,10.82669146]
[1757959295758,0.03,233.4,233.39,8.49512422]
[1757959295962,0.03,233.4,233.39,4.28467372]
[1757959296183,0.03,233.4,233.39,8.49512422]
[1757959298085,0.03,233.4,233.39,4.2104505]
[1757959298676,0.03,233.4,233.39,8.49512422]
[1757959299386,0.03,233.4,233.39,4.2104505]
[1757959299785,0.03,233.4,233.39,48.2328798]
[1757959300375,0.03,233.4,233.39,48.09071823]
[1757959300695,0.03,233.4,233.39,8.49512422]
[1757959303580,0.03,233.4,233.39,17.80604451]
[1757959304286,0.03,233.4,233.39,22.09071823]
[1757959304663,0.03,233.4,233.39,18.0224293]
[1757959304867,0.03,233.4,233.39,22.09071823]
[1757959307366,0.03,233.4,233.39,17.88026773]
[1757959307599,0.03,233.4,233.39,22.09071823]
[1757959308992,0.03,233.4,233.39,26.87179767]
[1757959310292,0.03,233.4,233.39,61.95179767]
[1757959310496,0.03,233.45,233.44,0.14216157]
[1757959310711,0.03,233.45,233.44,4.78098766]
[1757959311397,0.03,233.45,233.44,0.57053716]
[1757959311580,0.03,233.45,233.44,4.78098766]
[1757959312309,0.03,233.45,233.44,9.06474365]
[1757959313607,0.03,233.45,233.44,22.66033766]
[1757959316210,0.03,233.45,233.44,57.64033766]
[1757959317108,0.67408004,233.54,233.49,13.59559401]
[1757959317293,0.67408004,233.54,233.49,48.57559401]
[1757959317480,0.03,233.56,233.53,8.49246935]
[1757959317808,0.03,233.56,233.55,1.74937036]
[1757959318812,0.03,233.56,233.47,13.59559401]
[1757959319115,0.7,233.55,233.51,1.74937036]
[1757959319285,0.7,233.54,233.51,1.74937036]
[1757959319479,0.7,233.53,233.51,1.74937036]
[1757959319706,0.7,233.52,233.51,1.74937036]
[1757959320113,0.7,233.52,233.47,17.87879956]
[1757959320306,0.7,233.51,233.49,1.74937036]
[1757959320505,0.7,233.5,233.49,1.74937036]
[1757959322904,4.98265524,233.5,233.41,13.59559401]
[1757959323087,0.7,233.49,233.42,1.74937036]
[1757959323288,6.0320256,233.5,233.42,1.74937036]
[1757959323289,0.7,233.48,233.42,1.74937036]
[1757959323495,0.7,233.47,233.44,1.74937036]
[1757959323705,0.7,233.46,233.44,1.74937036]
[1757959323888,0.7,233.45,233.43,4.209557]
[1757959324283,0.7,233.44,233.43,8.49349651]
[1757959326393,0.7,233.47,233.43,8.49349651]
[1757959326722,0.7,233.46,233.45,4.209557]
[1757959327031,0.7,233.46,233.41,13.59559401]
[1757959327185,0.7,233.45,233.37,13.59559401]
[1757959327387,0.7,233.45,233.36,34.86]
[1757959327388,0.7,233.45,233.36,0.06]
[1757959327582,0.7,233.45,233.39,4.209557]
[1757959327799,0.7,233.44,233.39,4.209557]
[1757959328018,0.7,233.43,233.39,4.209557]
[1757959328194,0.7,233.42,233.39,4.209557]
[1757959328589,0.7,233.41,233.36,0.06]
[1757959328883,0.7,233.44,233.4,13.59559401]
[1757959329114,0.7,233.44,233.43,4.209557]
[1757959329317,0.7,233.46,233.43,4.209557]
[1757959329521,0.7,233.45,233.43,4.209557]
[1757959329729,0.7,233.45,233.38,4.34484253]
[1757959329730,0.7,233.48,233.44,4.209557]
[1757959329906,0.7,233.47,233.46,4.209557]
[1757959330418,0.7,233.49,233.46,4.209557]
[1757959330594,0.7,233.49,233.48,4.209557]
[1757959332103,0.7,233.53,233.48,4.209557]
[1757959332304,0.7,233.52,233.5,4.209557]
[1757959332509,0.03,233.54,233.46,26.0]
[1757959332699,0.7,233.51,233.43,0.06]
[1757959333017,0.7,233.51,233.45,4.209557]
[1757959333217,0.7,233.51,233.44,4.28375599]
[1757959333531,0.7,233.51,233.45,13.59559401]
[1757959333711,0.03,233.54,233.5,4.209557]
[1757959334018,0.7,233.53,233.5,4.209557]
[1757959334318,0.7,233.52,233.5,4.209557]
[1757959334505,0.7,233.51,233.5,4.209557]
[1757959334719,0.7,233.53,233.5,4.28264409]
[1757959334899,0.7,233.52,233.5,4.209557]
[1757959335103,0.7,233.51,233.5,4.209557]
[1757959335798,0.73,233.54,233.5,4.209557]
[1757959336112,0.7,233.53,233.52,4.209557]
[1757959336541,0.03,233.54,233.53,4.28210508]
[1757959337017,0.03,233.54,233.53,8.49166208]
[1757959337202,0.03,233.54,233.53,18.01986066]
[1757959337513,0.03,233.54,233.53,4.209557]
[1757959337514,0.73,233.54,233.53,4.209557]
[1757959337714,0.73,233.54,233.51,4.209557]
[1757959338012,0.03,233.54,233.53,4.35171857]
[1757959338216,0.03,233.54,233.53,4.38171857]
[1757959338718,0.03,233.54,233.53,12.87338065]
[1757959339106,0.03,233.54,233.53,8.66382365]
[1757959339614,0.03,233.54,233.53,61.38897466]
[1757959340204,0.03,233.56,233.55,13.73775558]
[1757959340402,0.03,233.59,233.58,39.59559401]
[1757959340608,0.7,233.69,233.59,13.59559401]
[1757959340795,0.7,233.69,233.6,18.2332332]
[1757959341197,0.7,233.69,233.6,18.2632332]
[1757959341432,4.27844386,233.73,233.6,18.2332332]
[1757959341732,0.7,233.67,233.6,18.37539477]
[1757959341902,0.7,233.65,233.6,17.94731258]
[1757959342310,4.27917676,233.69,233.6,13.59559401]
[1757959342513,0.73,233.61,233.6,26.0]
[1757959343097,0.73,233.61,233.59,30.209557]
[1757959343404,0.7,233.6,233.59,13.59559401]
[1757959343597,0.7,233.6,233.58,4.209557]
[1757959343796,0.7,233.59,233.57,17.80515101]
[1757959344314,0.03,233.61,233.57,17.80515101]
[1757959344616,0.7,233.58,233.55,17.80515101]
[1757959344817,0.7,233.57,233.55,13.59559401]
[1757959345002,0.7,233.57,233.55,17.80515101]
[1757959345201,0.7,233.59,233.55,17.80515101]
[1757959345435,0.7,233.59,233.57,4.209557]
[1757959345810,0.7,233.58,233.57,4.209557]
[1757959346307,0.7,233.58,233.55,13.59559401]
[1757959346508,0.7,233.58,233.57,4.209557]
[1757959346703,0.03,233.61,233.57,4.209557]
[1757959346912,0.7,233.6,233.55,4.28173485]
[1757959347117,0.03,233.61,233.59,4.209557]
[1757959347327,0.03,233.61,233.55,4.31173485]
[1757959347624,0.03,233.61,233.6,4.209557]
[1757959348529,0.73,233.61,233.6,4.209557]
[1757959348914,0.73,233.61,233.58,4.209557]
[1757959349319,0.7,233.6,233.58,4.209557]
[1757959349523,0.03,233.61,233.58,4.209557]
[1757959349844,0.7,233.59,233.58,4.209557]
[1757959350016,0.03,233.61,233.59,13.59559401]
[1757959350412,0.03,233.61,233.6,4.209557]
[1757959350737,0.03,233.61,233.6,22.08597292]
[1757959351820,0.72,233.61,233.6,4.209557]
[1757959352023,0.72,233.61,233.6,8.49037891]
[1757959352326,0.03,233.61,233.6,4.209557]
[1757959353023,0.03,233.61,233.6,8.49037891]
[1757959353739,0.72,233.61,233.6,4.209557]
[1757959354109,0.72,233.61,233.57,13.59559401]
[1757959354315,0.69,233.6,233.59,4.209557]
[1757959355024,0.69,233.6,233.56,17.8771481]
[1757959355209,0.69,233.59,233.58,4.209557]
[1757959355620,4.06074122,233.64,233.58,4.209557]
[1757959355843,4.06074122,233.64,233.58,6.52447919]
[1757959356216,4.27990584,233.65,233.58,10.80564795]
[1757959356432,4.27990584,233.65,233.58,6.52447919]
[1757959356930,6.52447919,233.64,233.53,0.06]
[1757959357111,6.52447919,233.64,233.55,13.59559401]
[1757959357314,6.52447919,233.62,233.55,13.59559401]
[1757959357727,0.69,233.61,233.55,13.59559401]
[1757959357933,0.69,233.6,233.54,20.1200732]
[1757959358537,4.97083173,233.6,233.54,20.1200732]
[1757959359521,4.97083173,233.6,233.54,24.4018608]
[1757959359720,4.97083173,233.6,233.54,17.87738161]
[1757959360121,26.0,233.65,233.55,6.52447919]
[1757959360342,0.69,233.62,233.55,7.23447919]
[1757959360538,21.39378549,233.72,233.56,0.14216157]
[1757959360739,0.69,233.66,233.61,13.59559401]
[1757959360934,0.69,233.66,233.62,6.52447919]
[1757959361136,0.69,233.65,233.61,13.59559401]
[1757959361435,0.69,233.68,233.61,13.59559401]
[1757959361732,0.69,233.68,233.62,4.28045544]
[1757959362530,0.69,233.67,233.61,13.59559401]
[1757959362739,0.69,233.67,233.61,17.87622974]
[1757959364243,35.31,233.67,233.61,17.87622974]
[1757959364541,39.58955279,233.67,233.61,17.87622974]
[1757959365441,35.31,233.67,233.61,17.87622974]
[1757959365940,34.6,233.68,233.61,17.87622974]
[1757959366329,0.69,233.67,233.61,17.87622974]
[1757959367021,35.27,233.67,233.61,17.87622974]
[1757959367640,35.3,233.67,233.61,17.87622974]
[1757959367834,35.28,233.67,233.61,17.87622974]
[1757959372343,0.72,233.67,233.61,17.87622974]
[1757959372543,34.54,233.66,233.61,17.87622974]
[1757959372947,35.23,233.66,233.61,17.87622974]
[1757959374735,0.69,233.66,233.61,17.87622974]
[1757959375046,0.69,233.65,233.61,17.87622974]
[1757959375449,0.03,233.67,233.61,17.87622974]
[1757959375629,0.69,233.64,233.6,4.28080452]
[1757959375836,0.69,233.64,233.6,30.28080452]
[1757959376037,34.54,233.65,233.6,30.28080452]
[1757959376242,0.7,233.64,233.6,30.28080452]
[1757959376445,0.7,233.63,233.6,30.28080452]
[1757959376951,0.7,233.62,233.59,13.65559401]
[1757959377146,0.7,233.61,233.59,17.93659237]
[1757959377450,4.28011666,233.64,233.59,17.93659237]
[1757959377752,0.7,233.63,233.59,17.93659237]
[1757959378353,0.7,233.62,233.59,17.93659237]
[1757959380155,2.73280971,233.64,233.59,0.06]
[1757959380457,2.73280971,233.6,233.59,0.06]
[1757959380660,37.27280971,233.6,233.59,0.06]
[1757959381155,37.97280971,233.6,233.59,0.06]
[1757959381657,42.25363162,233.6,233.59,0.06]
[1757959382234,37.97280971,233.6,233.59,0.06]
[1757959382755,26.0,233.55,233.43,0.06]
[1757959382960,31.46561942,233.51,233.43,0.06]
[1757959383148,5.46561942,233.49,233.43,0.06]
[1757959383450,34.56,233.49,233.43,0.72]
[1757959383834,35.27,233.49,233.43,0.72]
[1757959384033,38.00280971,233.49,233.43,0.72]
[1757959384659,38.00280971,233.49,233.43,5.00381149]
[1757959385534,38.00280971,233.49,233.43,4.34381149]
[1757959385734,42.28564837,233.49,233.43,0.06]
[1757959386051,7.72564837,233.49,233.43,0.06]
[1757959386249,42.28564837,233.49,233.43,0.06]
[1757959386845,42.28564837,233.49,233.45,0.06]
[1757959392542,30.99283866,233.49,233.45,0.06]
[1757959392742,64.84283866,233.49,233.45,0.06]
[1757959393032,65.55283866,233.49,233.45,0.06]
[1757959396259,30.99283866,233.49,233.45,0.06]
[1757959396448,64.84283866,233.49,233.45,0.06]
[1757959396844,65.55283866,233.49,233.45,0.06]
[1757959397855,65.69500023,233.49,233.45,0.06]
[1757959398061,28.87497128,233.46,233.45,0.06]
[1757959398364,63.43497128,233.46,233.45,0.06]
[1757959398529,64.14497128,233.46,233.45,0.06]
[1757959399547,68.42836029,233.46,233.45,0.06]
[1757959400454,4.99338901,233.46,233.45,0.06]
[1757959400655,41.57619872,233.46,233.45,0.06]
[1757959400955,42.28619872,233.46,233.45,0.06]
[1757959403248,42.42836029,233.46,233.45,0.06]
[1757959403654,41.71836029,233.46,233.45,0.06]
[1757959403855,42.42836029,233.46,233.45,0.06]
[1757959404543,7.86836029,233.46,233.45,0.06]
[1757959405448,42.42836029,233.46,233.45,0.06]
[1757959406667,26.14216157,233.44,233.43,0.06]
[1757959406970,63.43497128,233.44,233.43,0.06]
[1757959407264,26.0,233.41,233.4,0.06]
[1757959407481,67.71927786,233.41,233.4,0.06]
[1757959407641,68.42927786,233.41,233.4,0.06]
[1757959410163,33.86927786,233.41,233.4,0.06]
[1757959410368,68.42927786,233.41,233.4,0.06]
[1757959411259,79.14004432,233.41,233.38,0.06]
[1757959411461,2.87497128,233.39,233.38,0.06]
[1757959411639,7.159645,233.39,233.38,0.06]
[1757959411840,42.379645,233.39,233.38,0.06]
[1757959412957,26.14216157,233.37,233.36,0.06]
[1757959413165,63.43497128,233.37,233.36,0.06]
[1757959413345,0.14216157,233.36,233.35,0.2]
[1757959413549,0.80216157,233.36,233.35,0.2]
[1757959413859,30.8323864,233.39,233.35,0.88]
[1757959413860,4.28485731,233.38,233.35,0.88]
[1757959414060,34.56,233.37,233.35,0.2]
[1757959414454,3.53497128,233.36,233.35,0.2]
[1757959415246,3.53497128,233.36,233.34,1e-08]
[1757959415247,26.14216157,233.35,233.34,1e-08]
[1757959415459,60.70216157,233.35,233.34,1e-08]
[1757959415655,65.64756975,233.35,233.34,1e-08]
[1757959416059,39.59559401,233.32,233.31,1e-08]
[1757959416271,77.03056529,233.32,233.31,1e-08]
[1757959416459,15.65892864,233.35,233.31,1e-08]
[1757959416460,4.28540818,233.35,233.31,0.68000001]
[1757959416764,34.58,233.34,233.32,0.68]
[1757959416967,34.58,233.34,233.31,1e-08]
[1757959416968,3.39280971,233.33,233.31,1e-08]
[1757959417166,34.72216157,233.32,233.31,1e-08]
[1757959417351,35.38216157,233.32,233.31,1e-08]
[1757959417868,26.0,233.3,233.29,0.06]
[1757959418060,60.72216157,233.3,233.29,0.06]
[1757959418257,61.38216157,233.3,233.29,0.06]
[1757959418650,0.66,233.3,233.29,0.06]
[1757959418860,34.58,233.3,233.29,0.06]
[1757959419078,35.24,233.3,233.29,0.06]
[1757959419967,39.52632661,233.3,233.29,0.06]
[1757959422290,4.94632661,233.3,233.29,0.06]
[1757959422577,39.52632661,233.3,233.29,0.06]
[1757959424296,4.94632661,233.3,233.29,0.06]
[1757959424475,39.52632661,233.3,233.29,0.06]
[1757959425189,39.66848818,233.3,233.29,0.06]
[1757959425969,39.66848818,233.3,233.24,0.06]
[1757959425970,26.0,233.27,233.24,0.06]
[1757959426179,50.24214315,233.3,233.24,1e-08]
[1757959426180,15.49227497,233.25,233.24,1e-08]
[1757959426382,50.07227497,233.25,233.24,1e-08]
[1757959426619,55.01952041,233.25,233.24,1e-08]
[1757959426999,0.14216157,233.21,233.19,0.04]
[1757959427326,37.13668096,233.2,233.19,0.04]
[1757959428195,15.00535905,233.25,233.19,0.04]
[1757959428418,15.00535905,233.25,233.19,0.72]
[1757959428419,36.33451939,233.24,233.19,0.72]
[1757959428593,30.2881003,233.21,233.19,0.72]
[1757959428793,34.66,233.2,233.19,0.04]
[1757959430098,36.41451939,233.2,233.19,0.04]
[1757959430918,40.70268405,233.2,233.19,0.04]
[1757959431319,40.84484562,233.2,233.19,0.04]
[1757959432519,60.64,233.2,233.19,0.72]
[1757959432719,64.92816466,233.2,233.19,0.72]
[1757959433220,60.64,233.2,233.19,0.04]
[1757959434217,64.92816466,233.2,233.19,0.04]
[1757959435606,0.14216157,233.26,233.19,2.44451939]
[1757959435934,20.0,233.43,233.24,1.75451939]
[1757959436224,20.0,233.43,233.22,1.75451939]
[1757959436225,27.75451939,233.35,233.26,1.75451939]
[1757959436400,20.64,233.34,233.27,0.65]
[1757959437116,4.28577551,233.33,233.27,0.65]
[1757959437326,34.82,233.32,233.27,0.65]
[1757959437508,4.28577551,233.33,233.28,0.65]
[1757959437710,34.82,233.31,233.29,0.65]
[1757959438627,34.82,233.31,233.28,1.75451939]
[1757959438628,4.28577551,233.33,233.3,0.65]
[1757959438817,1.75451939,233.4,233.31,0.65]
[1757959439128,26.0,233.35,233.31,0.65]
[1757959439307,34.78,233.34,233.32,0.65]
[1757959439509,34.78,233.34,233.3,2.40451939]
[1757959439806,34.78,233.34,233.31,0.65]
[1757959440118,34.78,233.34,233.29,4.28647345]
[1757959440322,34.78,233.34,233.3,0.65]
[1757959440624,34.78,233.34,233.31,0.65]
[1757959440838,21.45106145,233.42,233.32,1.75451939]
[1757959440839,0.03,233.39,233.32,1.75451939]
[1757959441009,0.03,233.39,233.36,1.75451939]
[1757959441208,31.56,233.38,233.33,0.65]
[1757959441409,26.0,233.35,233.28,0.65]
[1757959441636,34.78,233.34,233.27,1.75451939]
[1757959441841,35.46,233.34,233.27,1.75451939]
[1757959442230,4.28577551,233.33,233.27,1.75451939]
[1757959442746,0.03,233.31,233.29,1.75451939]
[1757959442925,34.78,233.3,233.29,1.75451939]
[1757959443122,34.78,233.3,233.29,0.7]
[1757959443426,34.78,233.3,233.27,0.7]
[1757959443937,34.78,233.3,233.26,6.0414632]
[1757959444246,34.78,233.3,233.27,0.7]
[1757959445521,39.74634691,233.3,233.22,0.7]
[1757959445817,39.74634691,233.3,233.21,0.06]
[1757959445818,1.75451939,233.26,233.21,0.06]
[1757959446022,34.72,233.25,233.21,0.06]
[1757959446250,4.28742925,233.24,233.21,0.06]